Workbook

Sheet Celkové
A2: Závod TeamGym Junior malá oblast - rok 2017
A3: 2017-12-03
A5: Kategorie I.
A7: Startovní číslo | B7: Družstvo | C7: Župa | D7: Akrobacie | I7: Trampolína | N7: Pohybová skladba | S7: Celkem | T7: Pořadí
D8: D | E8: E | F8: C | G8: PEN | I8: D | J8: E | K8: C | L8: PEN | N8: D | O8: E | P8: C | Q8: PEN
A9: 3 | B9: Sokol Řeporyje | C9: 3 | D9: 3.30 | E9: 6.80 | F9: 2.00 | H9: =D9+E9+F9-G9 -> 12.10 | I9: 2.80 | J9: 6.67 | K9: 2.00 | M9: =I9+J9+K9-L9 -> 11.47 | N9: 2.60 | O9: 5.30 | P9: 3.40 | R9: =N9+O9+P9-Q9 -> 11.30 | S9: =H9+M9+R9 -> 34.87 | T9: =RANK(S9,S$9:S$15,0) -> 1
A10: 2 | B10: TJ Avia Čakovice | D10: 2.30 | E10: 6.90 | F10: 1.90 | H10: 11.10 | I10: 2.90 | J10: 6.03 | K10: 2.00 | M10: 10.93 | N10: 2.20 | O10: 6.10 | P10: 3.50 | R10: 11.80 | S10: 33.83 | T10: 2
A11: 4 | B11: Gym Club REDA - Veverky | C11: KASPV | D11: 2.90 | E11: 7.00 | F11: 2.00 | H11: 11.90 | I11: 2.90 | J11: 5.73 | K11: 2.00 | M11: 10.63 | N11: 2.60 | O11: 5.30 | P11: 3.30 | R11: 11.20 | S11: 33.73 | T11: 3
A12: 7 | B12: Sokol Vyšehrad A | C12: 5 | D12: 2.20 | E12: 7.50 | F12: 2.00 | H12: 11.70 | I12: 2.50 | J12: 5.33 | K12: 2.00 | M12: 9.83 | N12: 2.80 | O12: 6.00 | P12: 3.30 | R12: 12.10 | S12: 33.63 | T12: 4
A13: 1 | B13: Sokol Vyšehrad B | C13: 5 | D13: 2.20 | E13: 7.10 | F13: 2.00 | H13: 11.30 | I13: 2.00 | J13: 4.97 | K13: 2.00 | L13: 0.30 | M13: 8.67 | N13: 2.40 | O13: 5.90 | P13: 3.40 | R13: 11.70 | S13: 31.67 | T13: 5
A14: 6 | B14: Sokol Praha Vršovice | C14: 1 | D14: 2.60 | E14: 6.90 | F14: 2.00 | H14: 11.50 | I14: 2.80 | J14: 4.43 | K14: 2.00 | M14: 9.23 | N14: 2.40 | O14: 4.80 | P14: 3.30 | R14: 10.50 | S14: 31.23 | T14: 6
A15: 5 | B15: Sokol Královské Vinohrady | C15: 1 | D15: 2.20 | E15: 7.00 | F15: 2.00 | H15: 11.20 | I15: 2.90 | J15: 1.50 | K15: 2.00 | M15: 6.40 | N15: 2.60 | O15: 5.40 | P15: 3.40 | R15: 11.40 | S15: 29.00 | T15: 7
A18: Kategorie II.
A20: Startovní číslo | B20: Družstvo | C20: Župa | D20: Akrobacie | I20: Trampolína | N20: Pohybová skladba | S20: Celkem | T20: Pořadí
D21: D | E21: E | F21: C | G21: PEN | I21: D | J21: E | K21: C | L21: PEN | N21: D | O21: E | P21: C | Q21: PEN
A22: 13 | B22: Gym Club REDA - Klokani | C22: KASPV | D22: 3.20 | E22: 6.77 | F22: 1.90 | H22: =D22+E22+F22-G22 -> 11.87 | I22: 2.70 | J22: 7.30 | K22: 1.80 | M22: =I22+J22+K22-L22 -> 11.80 | N22: 5.60 | O22: 6.00 | P22: 3.50 | R22: =N22+O22+P22-Q22 -> 15.10 | S22: =H22+M22+R22 -> 38.77 | T22: =RANK(S22,S$22:S$29,0) -> 1
A23: 8 | B23: Sokol Radotín | C23: 5 | D23: 3.60 | E23: 6.23 | F23: 1.90 | H23: 11.73 | I23: 2.60 | J23: 6.23 | K23: 1.80 | M23: 10.63 | N23: 4.80 | O23: 5.50 | P23: 3.20 | R23: 13.50 | S23: 35.86 | T23: 2
A24: 11 | B24: Sokol Vyšehrad | C24: 5 | D24: 3.50 | E24: 6.40 | F24: 2.00 | H24: 11.90 | I24: 2.60 | J24: 6.40 | K24: 2.00 | M24: 11.00 | N24: 3.00 | O24: 5.70 | P24: 3.30 | R24: 12.00 | S24: 34.90 | T24: 3
A25: 15 | B25: SK Gymsport Praha - Sluníčka | C25: ASPV | D25: 3.30 | E25: 5.90 | F25: 2.00 | H25: 11.20 | I25: 2.80 | J25: 6.17 | K25: 2.00 | M25: 10.97 | N25: 3.40 | O25: 5.00 | P25: 3.40 | R25: 11.80 | S25: 33.97 | T25: 4
A26: 9 | B26: Sokol Řeporyje | C26: 3 | D26: 3.50 | E26: 6.50 | F26: 1.50 | H26: 11.50 | I26: 2.60 | J26: 5.53 | K26: 2.00 | M26: 10.13 | N26: 3.60 | O26: 5.10 | P26: 3.20 | R26: 11.90 | S26: 33.53 | T26: 5
A27: 14 | B27: Sokol Praha Vršovice | C27: 1 | D27: 2.30 | E27: 6.47 | F27: 2.00 | H27: 10.77 | I27: 2.20 | J27: 6.23 | K27: 2.00 | M27: 10.43 | N27: 2.60 | O27: 4.60 | P27: 3.40 | R27: 10.60 | S27: 31.80 | T27: 6
A28: 12 | B28: Sokol Královské Vinohrady | C28: 1 | D28: 2.50 | E28: 5.97 | F28: 1.80 | H28: 10.27 | I28: 2.50 | J28: 5.83 | K28: 1.90 | M28: 10.23 | N28: 3.10 | O28: 4.70 | P28: 3.10 | R28: 10.90 | S28: 31.40 | T28: 7
A29: 10 | B29: TJ Sokol Praha - Hanspaulka | C29: 3 | D29: 2.30 | E29: 5.07 | F29: 1.70 | H29: 9.07 | I29: 2.00 | J29: 5.17 | K29: 2.00 | M29: 9.17 | N29: 2.80 | O29: 4.80 | P29: 3.10 | R29: 10.70 | S29: 28.94 | T29: 8
A32: Kategorie III.
A34: Startovní číslo | B34: Družstvo | C34: Župa | D34: Akrobacie | I34: Trampolína | N34: Pohybová skladba | S34: Celkem | T34: Pořadí
D35: D | E35: E | F35: C | G35: PEN | I35: D | J35: E | K35: C | L35: PEN | N35: D | O35: E | P35: C | Q35: PEN
A36: 16 | B36: Sokol Královské Vinohrady B | C36: 1 | D36: 3.70 | E36: 6.70 | F36: 2.00 | H36: =D36+E36+F36-G36 -> 12.40 | I36: 3.30 | J36: 6.57 | K36: 1.90 | M36: =I36+J36+K36-L36 -> 11.77 | N36: 4.60 | O36: 6.90 | P36: 3.40 | R36: =N36+O36+P36-Q36 -> 14.90 | S36: =H36+M36+R36 -> 39.07 | T36: =RANK(S36,S$36:S$39,0) -> 1
A37: 19 | B37: Sokol Královské Vinohrady A | C37: 1 | D37: 3.40 | E37: 6.10 | F37: 2.00 | H37: =D37+E37+F37-G37 -> 11.50 | I37: 2.90 | J37: 6.57 | K37: 2.00 | M37: =I37+J37+K37-L37 -> 11.47 | N37: 5.20 | O37: 7.00 | P37: 3.30 | R37: =N37+O37+P37-Q37 -> 15.50 | S37: =H37+M37+R37 -> 38.47 | T37: =RANK(S37,S$36:S$39,0) -> 2
A38: 17 | B38: Sokol Vyšehrad | C38: 5 | D38: 3.20 | E38: 7.03 | F38: 1.90 | H38: =D38+E38+F38-G38 -> 12.13 | I38: 2.90 | J38: 6.00 | K38: 1.80 | M38: =I38+J38+K38-L38 -> 10.70 | N38: 4.60 | O38: 7.10 | P38: 3.50 | R38: =N38+O38+P38-Q38 -> 15.20 | S38: =H38+M38+R38 -> 38.03 | T38: =RANK(S38,S$36:S$39,0) -> 3
A39: 18 | B39: Sokol Praha Vršovice | C39: 1 | D39: 2.80 | E39: 6.40 | F39: 2.00 | H39: =D39+E39+F39-G39 -> 11.20 | I39: 2.60 | J39: 7.23 | K39: 1.70 | M39: =I39+J39+K39-L39 -> 11.53 | N39: 4.90 | O39: 6.80 | P39: 3.00 | R39: =N39+O39+P39-Q39 -> 14.70 | S39: =H39+M39+R39 -> 37.43 | T39: =RANK(S39,S$36:S$39,0) -> 4

Sheet kat.I
A2: Závod TeamGym Junior malá oblast - rok 2017
A3: 2017-12-03
A5: Kategorie I.
A7: St.č. | B7: Družstvo | C7: Župa | D7: Akrobacie | I7: Trampolína | N7: Pohybová skladba | S7: Celkem | T7: Pořadí
D8: D | E8: E | F8: C | G8: PEN | I8: D | J8: E | K8: C | L8: PEN | N8: D | O8: E | P8: C | Q8: PEN
A9: 3 | B9: Sokol Řeporyje | C9: 3 | D9: 3.30 | E9: 6.80 | F9: 2.00 | H9: =D9+E9+F9-G9 -> 12.10 | I9: 2.80 | J9: 6.67 | K9: 2.00 | M9: =I9+J9+K9-L9 -> 11.47 | N9: 2.60 | O9: 5.30 | P9: 3.40 | R9: =N9+O9+P9-Q9 -> 11.30 | S9: =H9+M9+R9 -> 34.87 | T9: =RANK(S9,S$9:S$15,0) -> 1
A10: 2 | B10: TJ Avia Čakovice | D10: 2.30 | E10: 6.90 | F10: 1.90 | H10: 11.10 | I10: 2.90 | J10: 6.03 | K10: 2.00 | M10: 10.93 | N10: 2.20 | O10: 6.10 | P10: 3.50 | R10: 11.80 | S10: 33.83 | T10: 2
A11: 4 | B11: Gym Club REDA - Veverky | C11: KASPV | D11: 2.90 | E11: 7.00 | F11: 2.00 | H11: 11.90 | I11: 2.90 | J11: 5.73 | K11: 2.00 | M11: 10.63 | N11: 2.60 | O11: 5.30 | P11: 3.30 | R11: 11.20 | S11: 33.73 | T11: 3
A12: 7 | B12: Sokol Vyšehrad A | C12: 5 | D12: 2.20 | E12: 7.50 | F12: 2.00 | H12: 11.70 | I12: 2.50 | J12: 5.33 | K12: 2.00 | M12: 9.83 | N12: 2.80 | O12: 6.00 | P12: 3.30 | R12: 12.10 | S12: 33.63 | T12: 4
A13: 1 | B13: Sokol Vyšehrad B | C13: 5 | D13: 2.20 | E13: 7.10 | F13: 2.00 | H13: 11.30 | I13: 2.00 | J13: 4.97 | K13: 2.00 | L13: 0.30 | M13: 8.67 | N13: 2.40 | O13: 5.90 | P13: 3.40 | R13: 11.70 | S13: 31.67 | T13: 5
A14: 6 | B14: Sokol Praha Vršovice | C14: 1 | D14: 2.60 | E14: 6.90 | F14: 2.00 | H14: 11.50 | I14: 2.80 | J14: 4.43 | K14: 2.00 | M14: 9.23 | N14: 2.40 | O14: 4.80 | P14: 3.30 | R14: 10.50 | S14: 31.23 | T14: 6
A15: 5 | B15: Sokol Královské Vinohrady | C15: 1 | D15: 2.20 | E15: 7.00 | F15: 2.00 | H15: 11.20 | I15: 2.90 | J15: 1.50 | K15: 2.00 | M15: 6.40 | N15: 2.60 | O15: 5.40 | P15: 3.40 | R15: 11.40 | S15: 29.00 | T15: 7

Sheet kat.II
A2: Závod TeamGym Junior malá oblast - rok 2017
A3: 2017-12-03
A5: Kategorie II.
A7: St.č. | B7: Družstvo | C7: Župa | D7: Akrobacie | I7: Trampolína | N7: Pohybová skladba | S7: Celkem | T7: Pořadí
D8: D | E8: E | F8: C | G8: PEN | I8: D | J8: E | K8: C | L8: PEN | N8: D | O8: E | P8: C | Q8: PEN
A9: 13 | B9: Gym Club REDA - Klokani | C9: KASPV | D9: 3.20 | E9: 6.77 | F9: 1.90 | H9: =D9+E9+F9-G9 -> 11.87 | I9: 2.70 | J9: 7.30 | K9: 1.80 | M9: =I9+J9+K9-L9 -> 11.80 | N9: 5.60 | O9: 6.00 | P9: 3.50 | R9: =N9+O9+P9-Q9 -> 15.10 | S9: =H9+M9+R9 -> 38.77 | T9: =RANK(S9,S$9:S$16,0) -> 1
A10: 8 | B10: Sokol Radotín | C10: 5 | D10: 3.60 | E10: 6.23 | F10: 1.90 | H10: 11.73 | I10: 2.60 | J10: 6.23 | K10: 1.80 | M10: 10.63 | N10: 4.80 | O10: 5.50 | P10: 3.20 | R10: 13.50 | S10: 35.86 | T10: =RANK(S10,S$9:S$16,0) -> 2
A11: 11 | B11: Sokol Vyšehrad | C11: 5 | D11: 3.50 | E11: 6.40 | F11: 2.00 | H11: 11.90 | I11: 2.60 | J11: 6.40 | K11: 2.00 | M11: 11.00 | N11: 3.00 | O11: 5.70 | P11: 3.30 | R11: 12.00 | S11: 34.90 | T11: 3
A12: 15 | B12: SK Gymsport Praha - Sluníčka | C12: ASPV | D12: 3.30 | E12: 5.90 | F12: 2.00 | H12: 11.20 | I12: 2.80 | J12: 6.17 | K12: 2.00 | M12: 10.97 | N12: 3.40 | O12: 5.00 | P12: 3.40 | R12: 11.80 | S12: 33.97 | T12: 4
A13: 9 | B13: Sokol Řeporyje | C13: 3 | D13: 3.50 | E13: 6.50 | F13: 1.50 | H13: 11.50 | I13: 2.60 | J13: 5.53 | K13: 2.00 | M13: 10.13 | N13: 3.60 | O13: 5.10 | P13: 3.20 | R13: 11.90 | S13: 33.53 | T13: 5
A14: 14 | B14: Sokol Praha Vršovice | C14: 1 | D14: 2.30 | E14: 6.47 | F14: 2.00 | H14: 10.77 | I14: 2.20 | J14: 6.23 | K14: 2.00 | M14: 10.43 | N14: 2.60 | O14: 4.60 | P14: 3.40 | R14: 10.60 | S14: 31.80 | T14: 6
A15: 12 | B15: Sokol Královské Vinohrady | C15: 1 | D15: 2.50 | E15: 5.97 | F15: 1.80 | H15: 10.27 | I15: 2.50 | J15: 5.83 | K15: 1.90 | M15: 10.23 | N15: 3.10 | O15: 4.70 | P15: 3.10 | R15: 10.90 | S15: 31.40 | T15: 7
A16: 10 | B16: TJ Sokol Praha - Hanspaulka | C16: 3 | D16: 2.30 | E16: 5.07 | F16: 1.70 | H16: 9.07 | I16: 2.00 | J16: 5.17 | K16: 2.00 | M16: 9.17 | N16: 2.80 | O16: 4.80 | P16: 3.10 | R16: 10.70 | S16: 28.94 | T16: 8

Sheet kat.III
A2: Závod TeamGym Junior malá oblast - rok 2017
A3: 2017-12-03
A5: Kategorie III.
A7: St.č. | B7: Družstvo | C7: Župa | D7: Akrobacie | I7: Trampolína | N7: Pohybová skladba | S7: Celkem | T7: Pořadí
D8: D | E8: E | F8: C | G8: PEN | I8: D | J8: E | K8: C | L8: PEN | N8: D | O8: E | P8: C | Q8: PEN
A9: 16 | B9: Sokol Královské Vinohrady B | C9: 1 | D9: 3.70 | E9: 6.70 | F9: 2.00 | H9: =D9+E9+F9-G9 -> 12.40 | I9: 3.30 | J9: 6.57 | K9: 1.90 | M9: =I9+J9+K9-L9 -> 11.77 | N9: 4.60 | O9: 6.90 | P9: 3.40 | R9: =N9+O9+P9-Q9 -> 14.90 | S9: =H9+M9+R9 -> 39.07 | T9: =RANK(S9,S$9:S$12,0) -> 1
A10: 19 | B10: Sokol Královské Vinohrady A | C10: 1 | D10: 3.40 | E10: 6.10 | F10: 2.00 | H10: =D10+E10+F10-G10 -> 11.50 | I10: 2.90 | J10: 6.57 | K10: 2.00 | M10: =I10+J10+K10-L10 -> 11.47 | N10: 5.20 | O10: 7.00 | P10: 3.30 | R10: =N10+O10+P10-Q10 -> 15.50 | S10: =H10+M10+R10 -> 38.47 | T10: =RANK(S10,S$9:S$12,0) -> 2
A11: 17 | B11: Sokol Vyšehrad | C11: 5 | D11: 3.20 | E11: 7.03 | F11: 1.90 | H11: =D11+E11+F11-G11 -> 12.13 | I11: 2.90 | J11: 6.00 | K11: 1.80 | M11: =I11+J11+K11-L11 -> 10.70 | N11: 4.60 | O11: 7.10 | P11: 3.50 | R11: =N11+O11+P11-Q11 -> 15.20 | S11: =H11+M11+R11 -> 38.03 | T11: =RANK(S11,S$9:S$12,0) -> 3
A12: 18 | B12: Sokol Praha Vršovice | C12: 1 | D12: 2.80 | E12: 6.40 | F12: 2.00 | H12: =D12+E12+F12-G12 -> 11.20 | I12: 2.60 | J12: 7.23 | K12: 1.70 | M12: =I12+J12+K12-L12 -> 11.53 | N12: 4.90 | O12: 6.80 | P12: 3.00 | R12: =N12+O12+P12-Q12 -> 14.70 | S12: =H12+M12+R12 -> 37.43 | T12: =RANK(S12,S$9:S$12,0) -> 4
